[Event "Early-Titled-Tuesday-Blitz-October-24-2023"]
[Site "Chess.com"]
[Date "2023.10.24"]
[Round "1"]
[White "alfianasybullina"]
[Black "Boundless_Strike"]
[Result "0-1"]
[WhiteElo "2292"]
[BlackElo "2615"]
[TimeControl "180+1"]
[EndTime "8:07:58 PDT"]
[Termination "Boundless_Strike won by resignation"]

1. d4 {[%clk 0:02:59.3]} 1... e5 {[%clk 0:01:58]} 2. dxe5 {[%clk 0:02:55.9]}
2... d6 {[%clk 0:01:56.4]} 3. Nf3 {[%clk 0:02:55.7]} 3... Bg4 {[%clk 0:01:51.1]}
4. e4 {[%clk 0:02:53.5]} 4... Nc6 {[%clk 0:01:40.8]} 5. exd6 {[%clk 0:02:51]}
5... Bxd6 {[%clk 0:01:35.2]} 6. Be2 {[%clk 0:02:49.1]} 6... Qe7 {[%clk 0:01:25]}
7. Nc3 {[%clk 0:02:44.9]} 7... O-O-O {[%clk 0:01:23.5]} 8. Bd2 {[%clk
0:02:42.5]} 8... Bxf3 {[%clk 0:01:15.7]} 9. Bxf3 {[%clk 0:02:35.1]} 9... Bf4
{[%clk 0:00:44]} 10. Bxf4 {[%clk 0:02:21.3]} 10... Rxd1+ {[%clk 0:00:44.8]} 11.
Rxd1 {[%clk 0:02:21.3]} 11... Nf6 {[%clk 0:00:45.1]} 12. O-O {[%clk 0:02:17.4]}
12... h6 {[%clk 0:00:41.5]} 13. Rfe1 {[%clk 0:02:16.8]} 13... g5 {[%clk
0:00:38.7]} 14. Nd5 {[%clk 0:02:08.1]} 14... Qe6 {[%clk 0:00:20.5]} 15. Bxc7
{[%clk 0:01:51.9]} 15... g4 {[%clk 0:00:07.4]} 16. Nxf6 {[%clk 0:01:42.1]} 16...
Qxf6 {[%clk 0:00:08.3]} 17. Bxg4+ {[%clk 0:01:41.8]} 17... Kxc7 {[%clk
0:00:07.7]} 18. g3 {[%clk 0:01:38.1]} 18... Ne5 {[%clk 0:00:05.4]} 19. Be2
{[%clk 0:01:36.5]} 19... Nf3+ {[%clk 0:00:05.9]} 20. Bxf3 {[%clk 0:01:36.4]}
20... Qxf3 {[%clk 0:00:06.8]} 21. Rd3 {[%clk 0:01:36.6]} 21... Qf6 {[%clk
0:00:06.5]} 22. e5 {[%clk 0:01:36.1]} 22... Qe6 {[%clk 0:00:07.2]} 23. b3 {[%clk
0:01:34.1]} 23... Qe7 {[%clk 0:00:07.7]} 24. c4 {[%clk 0:01:32.9]} 24... Rd8
{[%clk 0:00:08.2]} 25. Rf3 {[%clk 0:01:32.5]} 25... Rd2 {[%clk 0:00:06.7]} 26.
a4 {[%clk 0:01:30.8]} 26... a5 {[%clk 0:00:07]} 27. Kg2 {[%clk 0:01:29.1]} 27...
Rb2 {[%clk 0:00:07]} 28. Ree3 {[%clk 0:01:27.9]} 28... Kb6 {[%clk 0:00:07]} 29.
Rf6+ {[%clk 0:01:27.6]} 29... Ka7 {[%clk 0:00:07.4]} 30. Rxh6 {[%clk 0:01:26.6]}
30... Qc5 {[%clk 0:00:05.1]} 31. Kf3 {[%clk 0:01:09.6]} 31... Qb4 {[%clk
0:00:04]} 32. Rf6 {[%clk 0:01:08.1]} 32... Qd2 {[%clk 0:00:04.5]} 33. Ke4 {[%clk
0:01:05.9]} 33... Qc2+ {[%clk 0:00:04.5]} 34. Kd5 {[%clk 0:01:00.3]} 34... Rxb3
{[%clk 0:00:05.4]} 35. Rxb3 {[%clk 0:00:59.1]} 35... Qxb3 {[%clk 0:00:06.3]} 36.
Rxf7 {[%clk 0:00:57.7]} 36... Qd3+ {[%clk 0:00:06.9]} 37. Ke6 {[%clk 0:00:54.2]}
37... Qxc4+ {[%clk 0:00:06.9]} 38. Kf6 {[%clk 0:00:53.4]} 38... Qxa4 {[%clk
0:00:07.4]} 39. e6 {[%clk 0:00:52.7]} 39... Qd4+ {[%clk 0:00:08.1]} 40. Kg6
{[%clk 0:00:50.7]} 40... a4 {[%clk 0:00:08.8]} 41. e7 {[%clk 0:00:49.8]} 41...
Qd7 {[%clk 0:00:08.9]} 42. Kf6 {[%clk 0:00:48.3]} 42... Qc6+ {[%clk 0:00:08.1]}
43. Kg7 {[%clk 0:00:47.7]} 43... a3 {[%clk 0:00:08.8]} 44. Rf8 {[%clk
0:00:44.2]} 44... a2 {[%clk 0:00:07.7]} 45. e8=Q {[%clk 0:00:43.9]} 45... Qxe8
{[%clk 0:00:07.7]} 46. Rxe8 {[%clk 0:00:44.7]} 46... a1=Q+ {[%clk 0:00:07.7]}
47. Kg6 {[%clk 0:00:40.8]} 47... Qd4 {[%clk 0:00:07.7]} 48. Re3 {[%clk
0:00:38.9]} 48... b5 {[%clk 0:00:07.6]} 49. h4 {[%clk 0:00:37.4]} 49... b4
{[%clk 0:00:08.2]} 50. h5 {[%clk 0:00:37.5]} 50... Qd6+ {[%clk 0:00:07.2]} 51.
Kg7 {[%clk 0:00:37]} 51... Qd4+ {[%clk 0:00:07.4]} 52. Kg6 {[%clk 0:00:36.8]}
52... Qb6+ {[%clk 0:00:07.2]} 53. Kg7 {[%clk 0:00:35.6]} 53... b3 {[%clk
0:00:08.1]} 54. h6 {[%clk 0:00:35]} 54... Qb7+ {[%clk 0:00:08.1]} 55. Kg6 {[%clk
0:00:34.2]} 55... b2 {[%clk 0:00:07.1]} 56. h7 {[%clk 0:00:30.9]} 56... b1=Q+
{[%clk 0:00:05.8]} 57. Kg5 {[%clk 0:00:28.8]} 57... Q1xh7 {[%clk 0:00:06.2]} 0-1

[Event "Early-Titled-Tuesday-Blitz-October-24-2023"]
[Site "Chess.com"]
[Date "2023.10.24"]
[Round "1"]
[White "Carow-Kann"]
[Black "VOneChess"]
[Result "1-0"]
[WhiteElo "2604"]
[BlackElo "2244"]
[TimeControl "180+1"]
[EndTime "8:08:00 PDT"]
[Termination "Carow-Kann won on time"]

1. d4 {[%clk 0:03:00.9]} 1... Nf6 {[%clk 0:02:59.6]} 2. c4 {[%clk 0:02:57.9]}
2... c5 {[%clk 0:02:59]} 3. d5 {[%clk 0:02:58.2]} 3... b5 {[%clk 0:02:59]} 4.
cxb5 {[%clk 0:02:59.1]} 4... a6 {[%clk 0:02:59.4]} 5. bxa6 {[%clk 0:02:59.8]}
5... g6 {[%clk 0:02:59.7]} 6. Nc3 {[%clk 0:02:59.8]} 6... Bg7 {[%clk 0:02:59.9]}
7. a7 {[%clk 0:02:59]} 7... Rxa7 {[%clk 0:02:57.7]} 8. e4 {[%clk 0:02:59.3]}
8... d6 {[%clk 0:02:57.5]} 9. Nf3 {[%clk 0:02:55.2]} 9... O-O {[%clk 0:02:57.2]}
10. a4 {[%clk 0:02:54.6]} 10... Qa5 {[%clk 0:02:50.9]} 11. Bd2 {[%clk
0:02:32.5]} 11... Ra8 {[%clk 0:02:17.9]} 12. Bd3 {[%clk 0:02:24]} 12... Ba6
{[%clk 0:02:13.3]} 13. Nb5 {[%clk 0:02:23.7]} 13... Qb6 {[%clk 0:02:08.7]} 14.
Bc3 {[%clk 0:02:17.7]} 14... c4 {[%clk 0:01:20.1]} 15. Bc2 {[%clk 0:02:07.5]}
15... Bxb5 {[%clk 0:01:15.5]} 16. axb5 {[%clk 0:02:07]} 16... Rxa1 {[%clk
0:01:14.6]} 17. Qxa1 {[%clk 0:02:07.9]} 17... Qxb5 {[%clk 0:01:15.5]} 18. O-O
{[%clk 0:02:04.7]} 18... Nbd7 {[%clk 0:01:15.2]} 19. Nd4 {[%clk 0:02:04.8]}
19... Qb7 {[%clk 0:01:10.7]} 20. Nc6 {[%clk 0:01:42.9]} 20... Nc5 {[%clk
0:01:06.6]} 21. f3 {[%clk 0:01:31.2]} 21... Ra8 {[%clk 0:01:01.8]} 22. Qe1
{[%clk 0:01:22]} 22... Nh5 {[%clk 0:00:30.8]} 23. Bxg7 {[%clk 0:01:16.5]} 23...
Nxg7 {[%clk 0:00:30.4]} 24. Qc3 {[%clk 0:01:15.3]} 24... Na4 {[%clk 0:00:15.8]}
25. Qxc4 {[%clk 0:01:05.3]} 25... Nxb2 {[%clk 0:00:15.4]} 26. Qd4 {[%clk
0:01:05.4]} 26... e5 {[%clk 0:00:09.9]} 27. dxe6 {[%clk 0:01:01.8]} 27... Qxc6
{[%clk 0:00:09.7]} 28. exf7+ {[%clk 0:01:01.7]} 28... Kxf7 {[%clk 0:00:10.4]}
29. Bb3+ {[%clk 0:01:00]} 29... Ne6 {[%clk 0:00:09.7]} 30. Qxb2 {[%clk
0:00:55.8]} 30... Qb6+ {[%clk 0:00:07.5]} 31. Kh1 {[%clk 0:00:55.9]} 31... Rb8
{[%clk 0:00:08.4]} 32. Bxe6+ {[%clk 0:00:55.7]} 32... Kxe6 {[%clk 0:00:09.3]}
33. Qg7 {[%clk 0:00:45.4]} 33... Rb7 {[%clk 0:00:05.4]} 34. Qg8+ {[%clk
0:00:44.4]} 34... Rf7 {[%clk 0:00:06.1]} 35. f4 {[%clk 0:00:42]} 35... Qb7
{[%clk 0:00:02.6]} 36. f5+ {[%clk 0:00:41.6]} 36... gxf5 {[%clk 0:00:03.5]} 37.
exf5+ {[%clk 0:00:42]} 37... Kf6 {[%clk 0:00:04.1]} 38. Qh8+ {[%clk 0:00:41.7]}
38... Rg7 {[%clk 0:00:03.9]} 39. Qf8+ {[%clk 0:00:40.1]} 39... Rf7 {[%clk
0:00:04.3]} 40. Qxd6+ {[%clk 0:00:39.9]} 40... Kg7 {[%clk 0:00:05]} 41. Qd4+
{[%clk 0:00:40]} 41... Rf6 {[%clk 0:00:05.2]} 42. Qg4+ {[%clk 0:00:39.5]} 42...
Kh8 {[%clk 0:00:05.2]} 43. h3 {[%clk 0:00:39.5]} 43... Rf7 {[%clk 0:00:03.9]}
44. Qf3 {[%clk 0:00:39.2]} 44... Qc7 {[%clk 0:00:03.4]} 45. Qe3 {[%clk 0:00:37]}
45... Qd6 {[%clk 0:00:03.4]} 46. Qc3+ {[%clk 0:00:34.9]} 46... Kg8 {[%clk
0:00:03.5]} 47. Qc4 {[%clk 0:00:35]} 47... Kg7 {[%clk 0:00:03.4]} 48. Qg4+
{[%clk 0:00:34.6]} 48... Kf8 {[%clk 0:00:03.2]} 49. Rf3 {[%clk 0:00:34.9]} 49...
Rg7 {[%clk 0:00:03.2]} 50. Qa4 {[%clk 0:00:29.5]} 50... Qb6 {[%clk 0:00:01.8]}
51. Qa8+ {[%clk 0:00:28.9]} 51... Kf7 {[%clk 0:00:02]} 52. Qa2+ {[%clk
0:00:28.8]} 52... Ke7 {[%clk 0:00:01.9]} 53. Qa3+ {[%clk 0:00:25.7]} 53... Ke8
{[%clk 0:00:01.8]} 54. Re3+ {[%clk 0:00:25]} 54... Kd8 {[%clk 0:00:01.6]} 55.
Qf8+ {[%clk 0:00:24.3]} 1-0

[Event "Early-Titled-Tuesday-Blitz-October-24-2023"]
[Site "Chess.com"]
[Date "2023.10.24"]
[Round "1"]
[White "xxysoul6"]
[Black "AleksanderHnydiuk"]
[Result "1/2-1/2"]
[WhiteElo "3000"]
[BlackElo "2522"]
[TimeControl "180+1"]
[EndTime "8:08:02 PDT"]
[Termination "Game drawn by repetition"]

1. d4 {[%clk 0:03:00.9]} 1... d5 {[%clk 0:02:55.3]} 2. c4 {[%clk 0:03:01]} 2...
e6 {[%clk 0:02:55.7]} 3. Nc3 {[%clk 0:03:01]} 3... a6 {[%clk 0:02:56]} 4. cxd5
{[%clk 0:03:00.8]} 4... exd5 {[%clk 0:02:56.9]} 5. Bf4 {[%clk 0:03:01.3]} 5...
c6 {[%clk 0:02:55.8]} 6. e3 {[%clk 0:03:01.5]} 6... Bd6 {[%clk 0:02:55.8]} 7.
Bd3 {[%clk 0:03:02]} 7... Ne7 {[%clk 0:02:49.8]} 8. Bg5 {[%clk 0:02:58.6]} 8...
f6 {[%clk 0:02:41.8]} 9. Bh4 {[%clk 0:02:56.6]} 9... Bf5 {[%clk 0:02:40]} 10.
Bxf6 {[%clk 0:02:51.7]} 10... Bxd3 {[%clk 0:02:30]} 11. Bxe7 {[%clk 0:02:51.3]}
11... Qxe7 {[%clk 0:02:28.2]} 12. Qxd3 {[%clk 0:02:51.6]} 12... O-O {[%clk
0:02:26.2]} 13. Nge2 {[%clk 0:02:48.2]} 13... Nd7 {[%clk 0:02:22.4]} 14. O-O
{[%clk 0:02:48.2]} 14... Nf6 {[%clk 0:02:22.7]} 15. h3 {[%clk 0:02:26.9]} 15...
Rae8 {[%clk 0:02:22.2]} 16. Rae1 {[%clk 0:02:23.9]} 16... Ne4 {[%clk 0:02:19.3]}
17. Nf4 {[%clk 0:01:52.8]} 17... Nxc3 {[%clk 0:02:11.2]} 18. bxc3 {[%clk
0:01:35.6]} 18... Bxf4 {[%clk 0:02:09.7]} 19. exf4 {[%clk 0:01:36.5]} 19... Qxe1
{[%clk 0:02:09.8]} 20. Rxe1 {[%clk 0:01:37.4]} 20... Rxe1+ {[%clk 0:02:10]} 21.
Kh2 {[%clk 0:01:37.8]} 21... Rxf4 {[%clk 0:02:10.6]} 22. Qg3 {[%clk 0:01:32.1]}
22... Rfe4 {[%clk 0:02:05]} 23. Qb8+ {[%clk 0:01:31.1]} 23... Re8 {[%clk
0:01:57.1]} 24. Qxb7 {[%clk 0:01:30.7]} 24... R8e6 {[%clk 0:01:48.5]} 25. Qxa6
{[%clk 0:01:20.2]} 25... R1e2 {[%clk 0:01:47.9]} 26. Qc8+ {[%clk 0:01:11.5]}
26... Kf7 {[%clk 0:01:46.7]} 27. Qc7+ {[%clk 0:01:12.1]} 27... Kg8 {[%clk
0:01:37.9]} 28. Qc8+ {[%clk 0:00:53.9]} 28... Kf7 {[%clk 0:01:37.1]} 29. Qd7+
{[%clk 0:00:52.9]} 29... Kf8 {[%clk 0:01:24.5]} 30. a4 {[%clk 0:00:35.7]} 30...
Rf6 {[%clk 0:01:24.5]} 31. a5 {[%clk 0:00:34.6]} 31... Rfxf2 {[%clk 0:01:22.1]}
32. Qg4 {[%clk 0:00:33.2]} 32... Ra2 {[%clk 0:01:13.8]} 33. a6 {[%clk
0:00:33.3]} 33... Rfb2 {[%clk 0:00:56.5]} 34. h4 {[%clk 0:00:33.3]} 34... h5
{[%clk 0:00:52.7]} 35. Qf5+ {[%clk 0:00:28]} 35... Ke7 {[%clk 0:00:46.2]} 36.
Qg5+ {[%clk 0:00:27.1]} 36... Kf8 {[%clk 0:00:42]} 37. Qf4+ {[%clk 0:00:26.8]}
37... Kg8 {[%clk 0:00:40.7]} 38. Qf3 {[%clk 0:00:23.2]} 38... Rxa6 {[%clk
0:00:37.9]} 39. Qxh5 {[%clk 0:00:23.6]} 39... Raa2 {[%clk 0:00:36.7]} 40. Qe8+
{[%clk 0:00:22.3]} 40... Kh7 {[%clk 0:00:37]} 41. Qh5+ {[%clk 0:00:23]} 41...
Kg8 {[%clk 0:00:37.2]} 42. Qg6 {[%clk 0:00:23.5]} 42... Rxg2+ {[%clk 0:00:17.5]}
43. Qxg2 {[%clk 0:00:24.4]} 43... Rxg2+ {[%clk 0:00:17.8]} 44. Kxg2 {[%clk
0:00:25.3]} 44... Kf7 {[%clk 0:00:18.1]} 45. Kg3 {[%clk 0:00:25.4]} 45... Kf6
{[%clk 0:00:18.5]} 46. Kf4 {[%clk 0:00:25.6]} 46... g6 {[%clk 0:00:17.8]} 47.
Kg4 {[%clk 0:00:26.1]} 47... Kf7 {[%clk 0:00:17.8]} 48. Kg5 {[%clk 0:00:26.6]}
48... Kg7 {[%clk 0:00:18.2]} 49. Kg4 {[%clk 0:00:27.1]} 49... Kf7 {[%clk
0:00:17.2]} 50. Kf3 {[%clk 0:00:27.1]} 50... Ke6 {[%clk 0:00:16.2]} 51. Kg3
{[%clk 0:00:24.7]} 51... Kf7 {[%clk 0:00:16.2]} 52. Kg4 {[%clk 0:00:23.7]} 52...
Ke6 {[%clk 0:00:15.3]} 53. Kg5 {[%clk 0:00:22.9]} 53... Kf7 {[%clk 0:00:15.2]}
54. Kh6 {[%clk 0:00:21.8]} 54... Kf6 {[%clk 0:00:14.4]} 55. Kh7 {[%clk
0:00:22.3]} 55... Kf7 {[%clk 0:00:11.8]} 56. Kh8 {[%clk 0:00:21.5]} 56... Kf8
{[%clk 0:00:10.8]} 57. Kh7 {[%clk 0:00:22]} 57... Kf7 {[%clk 0:00:11.2]} 58. Kh6
{[%clk 0:00:22.5]} 58... Kf6 {[%clk 0:00:11.5]} 59. Kh7 {[%clk 0:00:23.1]} 59...
Kf7 {[%clk 0:00:11.7]} 1/2-1/2

[Event "Early-Titled-Tuesday-Blitz-October-24-2023"]
[Site "Chess.com"]
[Date "2023.10.24"]
[Round "1"]
[White "Ginzburg_Yakov"]
[Black "spotbet"]
[Result "0-1"]
[WhiteElo "2607"]
[BlackElo "2327"]
[TimeControl "180+1"]
[EndTime "8:08:02 PDT"]
[Termination "spotbet won by resignation"]

1. e4 {[%clk 0:02:59]} 1... e6 {[%clk 0:03:00]} 2. d4 {[%clk 0:02:59]} 2... d5
{[%clk 0:03:00.4]} 3. e5 {[%clk 0:02:57.4]} 3... c5 {[%clk 0:03:00.1]} 4. Qg4
{[%clk 0:02:54.5]} 4... c4 {[%clk 0:02:57]} 5. h4 {[%clk 0:02:41.9]} 5... h5
{[%clk 0:02:56.6]} 6. Qg3 {[%clk 0:02:41.7]} 6... Ne7 {[%clk 0:02:55.9]} 7. Bg5
{[%clk 0:02:35]} 7... Qb6 {[%clk 0:02:54.7]} 8. b3 {[%clk 0:02:33.3]} 8... Qxd4
{[%clk 0:02:53.7]} 9. c3 {[%clk 0:02:23.3]} 9... Qe4+ {[%clk 0:02:53]} 10. Be2
{[%clk 0:02:15.3]} 10... Nf5 {[%clk 0:02:49.9]} 11. Qf4 {[%clk 0:02:15]} 11...
Qxf4 {[%clk 0:02:33.5]} 12. Bxf4 {[%clk 0:02:15.9]} 12... cxb3 {[%clk
0:02:29.5]} 13. axb3 {[%clk 0:02:16.8]} 13... a6 {[%clk 0:02:28]} 14. Nf3 {[%clk
0:02:11.6]} 14... Nc6 {[%clk 0:02:27.2]} 15. Nbd2 {[%clk 0:02:09.6]} 15... Be7
{[%clk 0:02:26.3]} 16. g3 {[%clk 0:02:07.8]} 16... Bd7 {[%clk 0:02:26.6]} 17.
O-O {[%clk 0:02:07.6]} 17... Rc8 {[%clk 0:02:26.8]} 18. c4 {[%clk 0:02:05.9]}
18... Nb4 {[%clk 0:02:22.5]} 19. Rac1 {[%clk 0:01:56.4]} 19... O-O {[%clk
0:02:09.3]} 20. Bg5 {[%clk 0:01:47.9]} 20... f6 {[%clk 0:02:06.3]} 21. Bf4
{[%clk 0:01:43.9]} 21... b5 {[%clk 0:01:55.7]} 22. Kg2 {[%clk 0:01:36]} 22...
Bc6 {[%clk 0:01:52.2]} 23. cxb5 {[%clk 0:01:10.1]} 23... Bxb5 {[%clk 0:01:52]}
24. Bxb5 {[%clk 0:01:06.8]} 24... axb5 {[%clk 0:01:52.9]} 25. Ra1 {[%clk
0:01:00.9]} 25... Ra8 {[%clk 0:01:43.4]} 26. Kh3 {[%clk 0:00:59.8]} 26... Nd3
{[%clk 0:01:43.2]} 27. Rxa8 {[%clk 0:00:49.2]} 27... Rxa8 {[%clk 0:01:42.2]} 28.
exf6 {[%clk 0:00:43]} 28... Nxf4+ {[%clk 0:01:42]} 29. gxf4 {[%clk 0:00:43.2]}
29... gxf6 {[%clk 0:01:41.9]} 30. Rc1 {[%clk 0:00:39.5]} 30... Bd6 {[%clk
0:01:36.2]} 31. Rc6 {[%clk 0:00:38.9]} 31... Kf7 {[%clk 0:01:34.8]} 32. Nd4
{[%clk 0:00:38.6]} 32... Bxf4 {[%clk 0:01:31.7]} 33. Nxf5 {[%clk 0:00:38.7]}
33... Bxd2 {[%clk 0:01:29]} 34. Rc7+ {[%clk 0:00:38.9]} 34... Kf8 {[%clk
0:01:25.1]} 35. Nd4 {[%clk 0:00:26.5]} 35... e5 {[%clk 0:01:16.4]} 36. Ne6+
{[%clk 0:00:24.5]} 36... Kg8 {[%clk 0:01:16.5]} 37. Rg7+ {[%clk 0:00:18.7]}
37... Kh8 {[%clk 0:01:16.4]} 38. Rg6 {[%clk 0:00:18.9]} 38... Ra3 {[%clk
0:01:15.7]} 39. Rxf6 {[%clk 0:00:16.6]} 39... Rxb3+ {[%clk 0:01:15.3]} 40. Kg2
{[%clk 0:00:17.3]} 40... Rc3 {[%clk 0:01:07.4]} 41. Nd8 {[%clk 0:00:10.9]} 41...
Kg7 {[%clk 0:01:05.6]} 42. Rb6 {[%clk 0:00:09.9]} 42... b4 {[%clk 0:01:05]} 43.
Rxb4 {[%clk 0:00:08.8]} 43... Rg3+ {[%clk 0:01:03.8]} 44. Kxg3 {[%clk
0:00:08.9]} 44... Bxb4 {[%clk 0:01:04.2]} 45. Nc6 {[%clk 0:00:08.7]} 45... Bd6
{[%clk 0:01:03.6]} 46. Kf3 {[%clk 0:00:08.8]} 46... Kf6 {[%clk 0:01:00]} 47. Na5
{[%clk 0:00:08.2]} 47... e4+ {[%clk 0:00:59]} 48. Ke3 {[%clk 0:00:08.1]} 48...
Bc5+ {[%clk 0:00:58]} 49. Ke2 {[%clk 0:00:08.4]} 49... Kf5 {[%clk 0:00:56.4]}
50. Nc6 {[%clk 0:00:08.6]} 50... d4 {[%clk 0:00:53.3]} 51. f3 {[%clk 0:00:07.6]}
51... d3+ {[%clk 0:00:53.1]} 52. Kd2 {[%clk 0:00:07]} 52... exf3 {[%clk
0:00:50.2]} 53. Kxd3 {[%clk 0:00:07.6]} 53... Kg4 {[%clk 0:00:45.8]} 54. Ne5+
{[%clk 0:00:07.8]} 54... Kg3 {[%clk 0:00:46.4]} 55. Nc4 {[%clk 0:00:04.6]} 55...
Kxh4 {[%clk 0:00:44.1]} 56. Nd2 {[%clk 0:00:04.7]} 56... Kg3 {[%clk 0:00:44.2]}
57. Ne4+ {[%clk 0:00:04.9]} 57... Kg2 {[%clk 0:00:44.2]} 58. Nxc5 {[%clk
0:00:01.4]} 58... f2 {[%clk 0:00:44.6]} 59. Ke3 {[%clk 0:00:01.5]} 59... f1=Q
{[%clk 0:00:45.5]} 60. Nd3 {[%clk 0:00:01.8]} 60... Qf3+ {[%clk 0:00:45.5]} 61.
Kd2 {[%clk 0:00:02.1]} 61... Qxd3+ {[%clk 0:00:44.2]} 62. Kxd3 {[%clk
0:00:02.5]} 62... h4 {[%clk 0:00:45.1]} 0-1

[Event "Early-Titled-Tuesday-Blitz-October-24-2023"]
[Site "Chess.com"]
[Date "2023.10.24"]
[Round "1"]
[White "jaskol95"]
[Black "ferrufino64"]
[Result "1-0"]
[WhiteElo "2562"]
[BlackElo "2201"]
[TimeControl "180+1"]
[EndTime "8:08:02 PDT"]
[Termination "jaskol95 won by resignation"]

1. e4 {[%clk 0:03:00]} 1... c5 {[%clk 0:02:57.7]} 2. Nf3 {[%clk 0:03:00]} 2...
d6 {[%clk 0:02:52]} 3. Bb5+ {[%clk 0:02:59.2]} 3... Bd7 {[%clk 0:02:42.7]} 4. a4
{[%clk 0:02:58]} 4... a6 {[%clk 0:02:36.6]} 5. Bc4 {[%clk 0:02:56.4]} 5... Nc6
{[%clk 0:02:34.9]} 6. Nc3 {[%clk 0:02:56.3]} 6... e6 {[%clk 0:02:34.1]} 7. d4
{[%clk 0:02:52]} 7... cxd4 {[%clk 0:02:26.7]} 8. Nxd4 {[%clk 0:02:52.9]} 8...
Be7 {[%clk 0:02:26.9]} 9. O-O {[%clk 0:02:50.9]} 9... Nf6 {[%clk 0:02:26.7]} 10.
Be3 {[%clk 0:02:49.3]} 10... O-O {[%clk 0:02:23.9]} 11. Qd2 {[%clk 0:02:35.7]}
11... Rc8 {[%clk 0:02:17.4]} 12. Be2 {[%clk 0:02:33.1]} 12... Ne5 {[%clk
0:02:11.5]} 13. h3 {[%clk 0:02:20.5]} 13... Qc7 {[%clk 0:02:01.9]} 14. Rad1
{[%clk 0:02:08.5]} 14... Rfd8 {[%clk 0:01:55.6]} 15. f4 {[%clk 0:02:07.6]} 15...
Nc4 {[%clk 0:01:54.9]} 16. Bxc4 {[%clk 0:02:08.3]} 16... Qxc4 {[%clk 0:01:55.8]}
17. e5 {[%clk 0:01:57.2]} 17... Nd5 {[%clk 0:01:40.2]} 18. Nxd5 {[%clk
0:01:57.5]} 18... Qxd5 {[%clk 0:01:38.1]} 19. Nf5 {[%clk 0:01:38.6]} 19... Qxd2
{[%clk 0:01:27.9]} 20. Nxe7+ {[%clk 0:01:38]} 20... Kf8 {[%clk 0:01:28.6]} 21.
Rxd2 {[%clk 0:01:34.8]} 21... Kxe7 {[%clk 0:01:28.3]} 22. exd6+ {[%clk
0:01:31.4]} 22... Kf6 {[%clk 0:01:08.7]} 23. Bd4+ {[%clk 0:01:28]} 23... Kg6
{[%clk 0:01:08.8]} 24. Rf3 {[%clk 0:01:21.9]} 24... f6 {[%clk 0:01:06.4]} 25.
Bb6 {[%clk 0:01:10.9]} 25... Re8 {[%clk 0:01:04.1]} 26. b3 {[%clk 0:01:10.7]}
26... Rc6 {[%clk 0:01:03.6]} 27. Bf2 {[%clk 0:00:52.3]} 27... e5 {[%clk
0:00:59]} 28. fxe5 {[%clk 0:00:52.7]} 28... Rxe5 {[%clk 0:00:59]} 29. c4 {[%clk
0:00:49]} 29... b5 {[%clk 0:00:54.6]} 30. axb5 {[%clk 0:00:48]} 30... axb5
{[%clk 0:00:55.5]} 31. c5 {[%clk 0:00:48.2]} 31... Kf7 {[%clk 0:00:28.4]} 32.
Kf1 {[%clk 0:00:46.8]} 32... Rc8 {[%clk 0:00:25.4]} 33. Re2 {[%clk 0:00:34.6]}
33... Rce8 {[%clk 0:00:19.9]} 34. Rxe5 {[%clk 0:00:30.5]} 34... Rxe5 {[%clk
0:00:20.8]} 35. Bd4 {[%clk 0:00:26.4]} 35... Re4 {[%clk 0:00:17.9]} 36. Be3
{[%clk 0:00:22]} 36... Ke6 {[%clk 0:00:17.9]} 37. Ke2 {[%clk 0:00:21.1]} 37...
Kd5 {[%clk 0:00:18]} 38. Kd3 {[%clk 0:00:21.6]} 38... Re8 {[%clk 0:00:17.1]} 39.
g4 {[%clk 0:00:19.7]} 39... b4 {[%clk 0:00:17.5]} 40. Rf4 {[%clk 0:00:17.2]}
40... Bb5+ {[%clk 0:00:10.8]} 41. Kd2 {[%clk 0:00:17.5]} 41... Re4 {[%clk
0:00:09.1]} 42. Rf5+ {[%clk 0:00:11.2]} 42... Kc6 {[%clk 0:00:04.5]} 43. g5
{[%clk 0:00:08.5]} 43... Re6 {[%clk 0:00:02.7]} 44. gxf6 {[%clk 0:00:09]} 44...
Rxf6 {[%clk 0:00:03.2]} 45. Rxf6 {[%clk 0:00:08.9]} 45... gxf6 {[%clk
0:00:04.1]} 46. Bd4 {[%clk 0:00:09.5]} 46... f5 {[%clk 0:00:04.5]} 47. Ke3
{[%clk 0:00:10]} 47... Kd5 {[%clk 0:00:05]} 48. Bb2 {[%clk 0:00:09.4]} 48... Ke6
{[%clk 0:00:04.9]} 49. Kf4 {[%clk 0:00:09.6]} 49... Bc6 {[%clk 0:00:04.7]} 50.
Bd4 {[%clk 0:00:09.6]} 50... Bb5 {[%clk 0:00:05.1]} 51. Be3 {[%clk 0:00:09.9]}
51... Bc6 {[%clk 0:00:05.5]} 52. Bd2 {[%clk 0:00:10.5]} 52... Bd5 {[%clk
0:00:05.8]} 53. Bxb4 {[%clk 0:00:10.5]} 53... Bxb3 {[%clk 0:00:06.1]} 54. c6
{[%clk 0:00:11.2]} 54... Ba4 {[%clk 0:00:06.6]} 55. d7 {[%clk 0:00:10.2]} 55...
Bxc6 {[%clk 0:00:04.3]} 56. d8=Q {[%clk 0:00:10.7]} 1-0